[Event "Titled Tuesday Blitz February 28 Late 2023"]
[White "Yoo, Christopher Woojin"]
[Black "Bashirli, Nail"]
[WhiteFideId "30909694"]
[BlackFideId "13406809"]
[WhiteElo "2519"]
[BlackElo "2336"]
[Result "0-1"]
[Round "03"]
[TimeControl "180+2"]
[Date "2023.02.28"]
[WhiteClock "0:00:02"]
[BlackClock "0:00:22"]

1. e4 {[%clk 0:03:00]}  Nf6 {[%clk 0:02:49]} 2. e5 {[%clk 0:02:54]}  Nd5 {[%clk 0:02:49]} 3. d4 {[%clk 0:02:54]}  d6 {[%clk 0:02:49]} 4. Nf3 {[%clk 0:02:52]}  Nb6 {[%clk 0:02:49]} 5. a4 {[%clk 0:02:21]}  a5 {[%clk 0:02:45]} 6. Bb5+ {[%clk 0:02:06]}  c6 {[%clk 0:02:43]} 7. Bd3 {[%clk 0:02:07]}  g6 {[%clk 0:02:38]} 8. O-O {[%clk 0:02:04]}  Bg7 {[%clk 0:02:37]} 9. exd6 {[%clk 0:02:04]}  Qxd6 {[%clk 0:02:35]} 10. b3 {[%clk 0:01:47]}  O-O {[%clk 0:02:32]} 11. Ba3 {[%clk 0:01:47]}  Qc7 {[%clk 0:02:30]} 12. Re1 {[%clk 0:01:46]}  Re8 {[%clk 0:02:30]} 13. Nbd2 {[%clk 0:01:46]}  Bg4 {[%clk 0:02:28]} 14. h3 {[%clk 0:01:45]}  Bxf3 {[%clk 0:02:28]} 15. Nxf3 {[%clk 0:01:46]}  N8d7 {[%clk 0:02:23]} 16. Bxe7 {[%clk 0:01:32]}  Nd5 {[%clk 0:02:19]} 17. Bh4 {[%clk 0:01:32]}  Qb6 {[%clk 0:01:54]} 18. Bc4 {[%clk 0:01:27]}  Rxe1+ {[%clk 0:01:48]} 19. Qxe1 {[%clk 0:01:27]}  N7f6 {[%clk 0:01:43]} 20. Bxf6 {[%clk 0:01:19]}  Nxf6 {[%clk 0:01:44]} 21. Qe7 {[%clk 0:01:07]}  Rf8 {[%clk 0:01:42]} 22. Re1 {[%clk 0:00:53]}  Nd5 {[%clk 0:01:29]} 23. Qe4 {[%clk 0:00:42]}  Rd8 {[%clk 0:01:22]} 24. Bxd5 {[%clk 0:00:37]}  Rxd5 {[%clk 0:01:20]} 25. Qe8+ {[%clk 0:00:36]}  Bf8 {[%clk 0:01:21]} 26. Re7 {[%clk 0:00:33]}  Rf5 {[%clk 0:01:20]} 27. Rd7 {[%clk 0:00:30]}  Qb4 {[%clk 0:00:42]} 28. Rd8 {[%clk 0:00:27]}  Kg7 {[%clk 0:00:39]} 29. c3 {[%clk 0:00:17]}  Qa3 {[%clk 0:00:39]} 30. Qe3 {[%clk 0:00:05]}  Qxb3 {[%clk 0:00:34]} 31. g4 {[%clk 0:00:06]}  Rf6 {[%clk 0:00:28]} 32. Ne5 {[%clk 0:00:04]}  Bd6 {[%clk 0:00:22]} 33. g5 {[%clk 0:00:01]}  Re6 {[%clk 0:00:21]} 34. Qf3 {[%clk 0:00:01]}  Qb1+ {[%clk 0:00:22]} 35. Kg2 {[%clk 0:00:01]}  Qf5 {[%clk 0:00:23]} 36. Qxf5 {[%clk 0:00:01]}  gxf5 {[%clk 0:00:24]} 37. Nc4 {[%clk 0:00:02]}  Be7 {[%clk 0:00:22]} 38. Rd7 {[%clk 0:00:02]}  b5 {[%clk 0:00:22]} 39. axb5 {[%clk 0:00:03]}  cxb5 {[%clk 0:00:23]} 40. Nxa5 {[%clk 0:00:03]}  Bxg5 {[%clk 0:00:23]} 41. Rd5 {[%clk 0:00:04]}  Bd2 {[%clk 0:00:22]} 42. Rxf5 {[%clk 0:00:03]}  Bxc3 {[%clk 0:00:22]} 43. Rxb5 {[%clk 0:00:02]}  Bxd4 {[%clk 0:00:22]} 0-1


[Site "https://www.chess.com"]

[Event "Titled Tuesday Blitz February 28 Late 2023"]
[White "Grinev, Valeriy"]
[Black "Sarana, Alexey"]
[WhiteFideId "14117517"]
[BlackFideId "24133795"]
[WhiteElo "2365"]
[BlackElo "2717"]
[Result "0-1"]
[Round "03"]
[TimeControl "180+2"]
[Date "2023.02.28"]
[WhiteClock "0:00:12"]
[BlackClock "0:00:40"]

1. d4 {[%clk 0:03:00]}  Nf6 {[%clk 0:03:00]} 2. c4 {[%clk 0:03:01]}  e6 {[%clk 0:03:00]} 3. Nc3 {[%clk 0:03:00]}  Bb4 {[%clk 0:03:00]} 4. e3 {[%clk 0:03:01]}  O-O {[%clk 0:03:00]} 5. Bd3 {[%clk 0:02:58]}  d5 {[%clk 0:03:00]} 6. Nf3 {[%clk 0:02:57]}  Nbd7 {[%clk 0:02:57]} 7. cxd5 {[%clk 0:02:48]}  exd5 {[%clk 0:02:57]} 8. O-O {[%clk 0:02:48]}  c6 {[%clk 0:02:53]} 9. Ne5 {[%clk 0:02:41]}  Nxe5 {[%clk 0:02:33]} 10. dxe5 {[%clk 0:02:42]}  Ng4 {[%clk 0:02:32]} 11. f4 {[%clk 0:02:36]}  d4 {[%clk 0:02:31]} 12. Ne4 {[%clk 0:02:18]}  dxe3 {[%clk 0:01:55]} 13. h3 {[%clk 0:02:00]}  Bf5 {[%clk 0:01:37]} 14. Qe2 {[%clk 0:01:38]}  Qd4 {[%clk 0:00:57]} 15. hxg4 {[%clk 0:01:03]}  Bxe4 {[%clk 0:00:58]} 16. Bxe4 {[%clk 0:01:02]}  Qxe4 {[%clk 0:00:58]} 17. Qxe3 {[%clk 0:01:03]}  Qc4 {[%clk 0:00:55]} 18. b3 {[%clk 0:00:58]}  Qc2 {[%clk 0:00:51]} 19. Rf2 {[%clk 0:00:49]}  Qd1+ {[%clk 0:00:51]} 20. Kh2 {[%clk 0:00:39]}  Qxg4 {[%clk 0:00:50]} 21. Rf3 {[%clk 0:00:39]}  Rad8 {[%clk 0:00:48]} 22. a3 {[%clk 0:00:30]}  Be7 {[%clk 0:00:46]} 23. Bb2 {[%clk 0:00:24]}  Rd5 {[%clk 0:00:42]} 24. Rg3 {[%clk 0:00:20]}  Qh5+ {[%clk 0:00:42]} 25. Rh3 {[%clk 0:00:19]}  Qf5 {[%clk 0:00:42]} 26. Rg1 {[%clk 0:00:15]}  Rfd8 {[%clk 0:00:42]} 27. g4 {[%clk 0:00:15]}  Qc2+ {[%clk 0:00:42]} 28. Rg2 {[%clk 0:00:15]}  Rd2 {[%clk 0:00:42]} 29. Rg3 {[%clk 0:00:15]}  Qxb2 {[%clk 0:00:42]} 30. f5 {[%clk 0:00:15]}  Bh4 {[%clk 0:00:40]} 31. e6 {[%clk 0:00:12]}  Bxg3+ {[%clk 0:00:40]} 0-1


[Site "https://www.chess.com"]

[Event "Titled Tuesday Blitz February 28 Late 2023"]
[White "Abdrlauf, Elham"]
[Black "Jaracz, Pawel"]
[WhiteFideId "1533533"]
[BlackFideId "1102222"]
[WhiteElo "2476"]
[BlackElo "2438"]
[Result "1-0"]
[Round "03"]
[TimeControl "180+2"]
[Date "2023.02.28"]
[WhiteClock "0:00:52"]
[BlackClock "0:00:19"]

1. e4 {[%clk 0:02:58]}  c6 {[%clk 0:02:57]} 2. d4 {[%clk 0:02:59]}  d5 {[%clk 0:02:57]} 3. Nc3 {[%clk 0:02:59]}  dxe4 {[%clk 0:02:57]} 4. Nxe4 {[%clk 0:03:00]}  h6 {[%clk 0:02:56]} 5. Nf3 {[%clk 0:03:00]}  Bf5 {[%clk 0:02:56]} 6. Bd3 {[%clk 0:03:01]}  e6 {[%clk 0:02:56]} 7. O-O {[%clk 0:03:01]}  Nd7 {[%clk 0:02:54]} 8. Re1 {[%clk 0:03:01]}  Qc7 {[%clk 0:02:47]} 9. c4 {[%clk 0:03:00]}  Bxe4 {[%clk 0:02:43]} 10. Bxe4 {[%clk 0:03:01]}  Ngf6 {[%clk 0:02:43]} 11. Bc2 {[%clk 0:03:00]}  Bb4 {[%clk 0:02:42]} 12. Bd2 {[%clk 0:02:58]}  Bxd2 {[%clk 0:02:42]} 13. Qxd2 {[%clk 0:02:58]}  O-O {[%clk 0:02:39]} 14. Rad1 {[%clk 0:02:55]}  Rad8 {[%clk 0:02:39]} 15. Qe3 {[%clk 0:02:51]}  Qa5 {[%clk 0:02:29]} 16. a3 {[%clk 0:02:47]}  Rfe8 {[%clk 0:02:28]} 17. h3 {[%clk 0:02:44]}  Qb6 {[%clk 0:02:18]} 18. b4 {[%clk 0:02:41]}  a5 {[%clk 0:02:17]} 19. Rb1 {[%clk 0:02:37]}  axb4 {[%clk 0:02:17]} 20. Rxb4 {[%clk 0:02:36]}  Qc7 {[%clk 0:02:11]} 21. Reb1 {[%clk 0:02:35]}  b6 {[%clk 0:02:10]} 22. Ne5 {[%clk 0:02:19]}  c5 {[%clk 0:02:08]} 23. Nxd7 {[%clk 0:02:18]}  Nxd7 {[%clk 0:02:06]} 24. dxc5 {[%clk 0:02:18]}  Qxc5 {[%clk 0:01:35]} 25. Qxc5 {[%clk 0:02:16]}  bxc5 {[%clk 0:01:35]} 26. Rb7 {[%clk 0:02:15]}  Ne5 {[%clk 0:01:33]} 27. Ba4 {[%clk 0:02:13]}  Rf8 {[%clk 0:01:32]} 28. Bb5 {[%clk 0:02:13]}  Rd2 {[%clk 0:01:29]} 29. Ra1 {[%clk 0:02:10]}  Ra8 {[%clk 0:01:25]} 30. a4 {[%clk 0:02:10]}  Ra5 {[%clk 0:01:25]} 31. Rc7 {[%clk 0:02:07]}  Kh7 {[%clk 0:01:02]} 32. Rxc5 {[%clk 0:02:01]}  Nd3 {[%clk 0:01:02]} 33. Rc7 {[%clk 0:02:01]}  f5 {[%clk 0:00:57]} 34. Rd7 {[%clk 0:02:00]}  e5 {[%clk 0:00:56]} 35. c5 {[%clk 0:01:54]}  e4 {[%clk 0:00:56]} 36. c6 {[%clk 0:01:40]}  Rc2 {[%clk 0:00:55]} 37. Rf1 {[%clk 0:01:28]}  Nc5 {[%clk 0:00:45]} 38. Rb7 {[%clk 0:00:53]}  Nxa4 {[%clk 0:00:44]} 39. Ra1 {[%clk 0:00:53]}  Rxb5 {[%clk 0:00:27]} 40. Rxb5 {[%clk 0:00:54]}  Nc3 {[%clk 0:00:27]} 41. Rxf5 {[%clk 0:00:51]}  Ne2+ {[%clk 0:00:26]} 42. Kf1 {[%clk 0:00:52]}  Nd4 {[%clk 0:00:26]} 43. Re5 {[%clk 0:00:52]}  Rxc6 {[%clk 0:00:22]} 44. Rxe4 {[%clk 0:00:52]}  Nb3 {[%clk 0:00:22]} 45. Rd1 {[%clk 0:00:52]}  Rc3 {[%clk 0:00:19]} 46. Re3 {[%clk 0:00:52]} 1-0


[Site "https://www.chess.com"]

[Event "Titled Tuesday Blitz February 28 Late 2023"]
[White "Adewumi, Tanitoluwa"]
[Black "Rustemov, Alexander"]
[WhiteFideId "30966396"]
[BlackFideId "4119002"]
[WhiteElo "2677"]
[BlackElo "2913"]
[Result "0-1"]
[Round "03"]
[TimeControl "180+2"]
[Date "2023.02.28"]
[WhiteClock "0:00:04"]
[BlackClock "0:00:25"]

1. e4 {[%clk 0:02:48]}  e6 {[%clk 0:02:59]} 2. d4 {[%clk 0:02:46]}  d5 {[%clk 0:03:00]} 3. exd5 {[%clk 0:02:47]}  exd5 {[%clk 0:02:59]} 4. Nf3 {[%clk 0:02:48]}  Bf5 {[%clk 0:02:59]} 5. Bd3 {[%clk 0:02:45]}  Bxd3 {[%clk 0:02:58]} 6. Qxd3 {[%clk 0:02:45]}  Nc6 {[%clk 0:02:59]} 7. O-O {[%clk 0:02:45]}  Bd6 {[%clk 0:02:59]} 8. Nc3 {[%clk 0:02:44]}  Nge7 {[%clk 0:02:59]} 9. Nb5 {[%clk 0:02:42]}  a6 {[%clk 0:02:58]} 10. Nxd6+ {[%clk 0:02:42]}  Qxd6 {[%clk 0:02:58]} 11. c3 {[%clk 0:02:40]}  Qg6 {[%clk 0:02:56]} 12. Qe2 {[%clk 0:02:37]}  O-O {[%clk 0:02:51]} 13. Ne5 {[%clk 0:02:37]}  Qe6 {[%clk 0:02:43]} 14. Re1 {[%clk 0:02:34]}  Rae8 {[%clk 0:02:28]} 15. Nd3 {[%clk 0:02:08]}  Qxe2 {[%clk 0:02:12]} 16. Rxe2 {[%clk 0:02:07]}  Ng6 {[%clk 0:02:13]} 17. Kf1 {[%clk 0:02:04]}  Rxe2 {[%clk 0:02:11]} 18. Kxe2 {[%clk 0:02:05]}  Re8+ {[%clk 0:02:12]} 19. Kf1 {[%clk 0:02:05]}  b6 {[%clk 0:02:09]} 20. f3 {[%clk 0:02:01]}  f6 {[%clk 0:02:07]} 21. Kf2 {[%clk 0:02:00]}  Kf7 {[%clk 0:02:07]} 22. Nf4 {[%clk 0:01:53]}  Nxf4 {[%clk 0:02:04]} 23. Bxf4 {[%clk 0:01:54]}  Rc8 {[%clk 0:02:01]} 24. Re1 {[%clk 0:01:50]}  Nd8 {[%clk 0:02:00]} 25. Bg3 {[%clk 0:01:43]}  Ne6 {[%clk 0:01:59]} 26. f4 {[%clk 0:01:41]}  g6 {[%clk 0:01:57]} 27. Kf3 {[%clk 0:01:38]}  f5 {[%clk 0:01:56]} 28. Re5 {[%clk 0:01:37]}  c6 {[%clk 0:01:55]} 29. Bh4 {[%clk 0:01:38]}  Re8 {[%clk 0:01:49]} 30. h3 {[%clk 0:01:32]}  Nf8 {[%clk 0:01:45]} 31. Bf6 {[%clk 0:01:09]}  Nd7 {[%clk 0:01:35]} 32. Rxe8 {[%clk 0:01:06]}  Kxe8 {[%clk 0:01:36]} 33. Be5 {[%clk 0:01:06]}  Ke7 {[%clk 0:01:35]} 34. Bc7 {[%clk 0:01:04]}  Ke6 {[%clk 0:01:28]} 35. b3 {[%clk 0:00:54]}  b5 {[%clk 0:01:28]} 36. Bd8 {[%clk 0:00:48]}  c5 {[%clk 0:01:21]} 37. Ke3 {[%clk 0:00:36]}  c4 {[%clk 0:01:18]} 38. b4 {[%clk 0:00:36]}  Nb8 {[%clk 0:01:17]} 39. a3 {[%clk 0:00:32]}  Nc6 {[%clk 0:01:16]} 40. Bg5 {[%clk 0:00:31]}  Kf7 {[%clk 0:01:13]} 41. Kf3 {[%clk 0:00:26]}  Nb8 {[%clk 0:01:09]} 42. Bd8 {[%clk 0:00:22]}  Nd7 {[%clk 0:01:08]} 43. Ke3 {[%clk 0:00:20]}  Ke8 {[%clk 0:01:08]} 44. Bg5 {[%clk 0:00:18]}  Nb6 {[%clk 0:01:08]} 45. Kd2 {[%clk 0:00:18]}  Na4 {[%clk 0:01:08]} 46. Kc2 {[%clk 0:00:17]}  Kd7 {[%clk 0:01:05]} 47. Bh6 {[%clk 0:00:17]}  Nb6 {[%clk 0:01:01]} 48. Bg7 {[%clk 0:00:16]}  Nc8 {[%clk 0:00:57]} 49. Be5 {[%clk 0:00:16]}  Ne7 {[%clk 0:00:52]} 50. Kd2 {[%clk 0:00:16]}  Ke6 {[%clk 0:00:50]} 51. Kc2 {[%clk 0:00:16]}  Kf7 {[%clk 0:00:42]} 52. Kd2 {[%clk 0:00:15]}  h6 {[%clk 0:00:43]} 53. g3 {[%clk 0:00:15]}  Nc8 {[%clk 0:00:38]} 54. Kc2 {[%clk 0:00:15]}  Nb6 {[%clk 0:00:37]} 55. Kd2 {[%clk 0:00:15]}  Na4 {[%clk 0:00:37]} 56. Kc2 {[%clk 0:00:16]}  g5 {[%clk 0:00:37]} 57. Bc7 {[%clk 0:00:14]}  Kg6 {[%clk 0:00:34]} 58. Be5 {[%clk 0:00:13]}  Kh5 {[%clk 0:00:34]} 59. Bd6 {[%clk 0:00:11]}  Nb6 {[%clk 0:00:33]} 60. Kd2 {[%clk 0:00:11]}  Nd7 {[%clk 0:00:33]} 61. Be5 {[%clk 0:00:08]}  Nf8 {[%clk 0:00:33]} 62. Ke3 {[%clk 0:00:08]}  Ng6 {[%clk 0:00:31]} 63. Kf3 {[%clk 0:00:09]}  g4+ {[%clk 0:00:31]} 64. Kg2 {[%clk 0:00:06]}  gxh3+ {[%clk 0:00:28]} 65. Kxh3 {[%clk 0:00:07]}  Ne7 {[%clk 0:00:27]} 66. Bf6 {[%clk 0:00:07]}  Nc8 {[%clk 0:00:25]} 67. Bd8 {[%clk 0:00:07]}  Nd6 {[%clk 0:00:25]} 68. Kg2 {[%clk 0:00:04]}  Ne4 {[%clk 0:00:25]} 0-1


[Site "https://www.chess.com"]

[Event "Titled Tuesday Blitz February 28 Late 2023"]
[White "Matinian, Nikita"]
[Black "Svane, Frederik"]
[WhiteFideId "24129100"]
[BlackFideId "12923044"]
[WhiteElo "2422"]
[BlackElo "2502"]
[Result "0-1"]
[Round "03"]
[TimeControl "180+2"]
[Date "2023.02.28"]
[WhiteClock "0:00:01"]
[BlackClock "0:00:07"]

1. e4 {[%clk 0:03:00]}  c5 {[%clk 0:03:00]} 2. Nf3 {[%clk 0:03:01]}  e6 {[%clk 0:03:01]} 3. d4 {[%clk 0:03:01]}  cxd4 {[%clk 0:03:02]} 4. Nxd4 {[%clk 0:03:02]}  Nc6 {[%clk 0:03:02]} 5. Nc3 {[%clk 0:03:03]}  a6 {[%clk 0:03:03]} 6. Be3 {[%clk 0:03:00]}  Nf6 {[%clk 0:03:02]} 7. Qf3 {[%clk 0:02:52]}  Bb4 {[%clk 0:02:51]} 8. Bd3 {[%clk 0:02:42]}  O-O {[%clk 0:02:32]} 9. Nxc6 {[%clk 0:02:19]}  bxc6 {[%clk 0:02:32]} 10. O-O-O {[%clk 0:02:19]}  Bxc3 {[%clk 0:02:26]} 11. bxc3 {[%clk 0:02:18]}  Qa5 {[%clk 0:02:27]} 12. Kd2 {[%clk 0:01:42]}  Bb7 {[%clk 0:02:07]} 13. h4 {[%clk 0:01:36]}  d5 {[%clk 0:01:40]} 14. e5 {[%clk 0:01:36]}  Ne4+ {[%clk 0:01:33]} 15. Bxe4 {[%clk 0:01:35]}  dxe4 {[%clk 0:01:33]} 16. Qxe4 {[%clk 0:01:33]}  Rfd8+ {[%clk 0:01:29]} 17. Ke2 {[%clk 0:01:33]}  Qxc3 {[%clk 0:01:29]} 18. Rb1 {[%clk 0:01:21]}  Rd7 {[%clk 0:01:07]} 19. Rb3 {[%clk 0:01:19]}  Qa5 {[%clk 0:01:02]} 20. Rhb1 {[%clk 0:01:19]}  Bc8 {[%clk 0:00:20]} 21. Qxc6 {[%clk 0:01:19]}  Qd5 {[%clk 0:00:20]} 22. Qxd5 {[%clk 0:01:00]}  exd5 {[%clk 0:00:21]} 23. Rb8 {[%clk 0:00:45]}  Rxb8 {[%clk 0:00:21]} 24. Rxb8 {[%clk 0:00:46]}  Rc7 {[%clk 0:00:21]} 25. Kd2 {[%clk 0:00:38]}  h6 {[%clk 0:00:19]} 26. c3 {[%clk 0:00:21]}  Kh7 {[%clk 0:00:19]} 27. f3 {[%clk 0:00:19]}  Rc4 {[%clk 0:00:19]} 28. Bd4 {[%clk 0:00:16]}  Be6 {[%clk 0:00:19]} 29. g4 {[%clk 0:00:13]}  Ra4 {[%clk 0:00:19]} 30. Rb2 {[%clk 0:00:11]}  h5 {[%clk 0:00:19]} 31. gxh5 {[%clk 0:00:09]}  Kh6 {[%clk 0:00:20]} 32. Ke3 {[%clk 0:00:08]}  Kxh5 {[%clk 0:00:20]} 33. Rg2 {[%clk 0:00:07]}  g6 {[%clk 0:00:20]} 34. Rh2 {[%clk 0:00:04]}  Ra5 {[%clk 0:00:20]} 35. Kf4 {[%clk 0:00:04]}  Rb5 {[%clk 0:00:20]} 36. Rg2 {[%clk 0:00:04]}  Rb1 {[%clk 0:00:20]} 37. Rg5+ {[%clk 0:00:04]}  Kxh4 {[%clk 0:00:20]} 38. Bf2+ {[%clk 0:00:04]}  Kh3 {[%clk 0:00:20]} 39. Rg3+ {[%clk 0:00:04]}  Kh2 {[%clk 0:00:21]} 40. Bd4 {[%clk 0:00:02]}  Rb2 {[%clk 0:00:20]} 41. Rg1 {[%clk 0:00:02]}  Rxa2 {[%clk 0:00:19]} 42. Rb1 {[%clk 0:00:02]}  a5 {[%clk 0:00:16]} 43. Kg5 {[%clk 0:00:01]}  Kg3 {[%clk 0:00:16]} 44. f4 {[%clk 0:00:01]}  a4 {[%clk 0:00:16]} 45. Rb6 {[%clk 0:00:01]}  Kf3 {[%clk 0:00:17]} 46. Rxe6 {[%clk 0:00:01]}  fxe6 {[%clk 0:00:18]} 47. Kxg6 {[%clk 0:00:01]}  a3 {[%clk 0:00:18]} 48. Kf6 {[%clk 0:00:02]}  Rd2 {[%clk 0:00:17]} 49. f5 {[%clk 0:00:02]}  a2 {[%clk 0:00:17]} 50. fxe6 {[%clk 0:00:03]}  a1=Q {[%clk 0:00:18]} 51. e7 {[%clk 0:00:03]}  Qa4 {[%clk 0:00:17]} 52. Kf7 {[%clk 0:00:04]}  Rh2 {[%clk 0:00:13]} 53. e6 {[%clk 0:00:01]}  Rh7+ {[%clk 0:00:14]} 54. Kf8 {[%clk 0:00:01]}  Qa3 {[%clk 0:00:07]} 0-1


[Site "https://www.chess.com"]

[Event "Titled Tuesday Blitz February 28 Late 2023"]
[White "Lewtak, Damian"]
[Black "Swiercz, Dariusz"]
[WhiteFideId "1141724"]
[BlackFideId "1126881"]
[WhiteElo "2302"]
[BlackElo "2627"]
[Result "0-1"]
[Round "03"]
[TimeControl "180+2"]
[Date "2023.02.28"]
[WhiteClock "0:00:05"]
[BlackClock "0:00:08"]

1. e4 {[%clk 0:03:00]}  c5 {[%clk 0:02:59]} 2. Nf3 {[%clk 0:03:01]}  Nc6 {[%clk 0:02:59]} 3. Bb5 {[%clk 0:03:01]}  g6 {[%clk 0:02:59]} 4. O-O {[%clk 0:03:00]}  Bg7 {[%clk 0:02:59]} 5. c3 {[%clk 0:03:01]}  Nf6 {[%clk 0:02:51]} 6. Qe2 {[%clk 0:02:59]}  O-O {[%clk 0:02:48]} 7. d4 {[%clk 0:02:57]}  cxd4 {[%clk 0:02:48]} 8. cxd4 {[%clk 0:02:58]}  d5 {[%clk 0:02:49]} 9. e5 {[%clk 0:02:59]}  Ne4 {[%clk 0:02:49]} 10. h3 {[%clk 0:02:45]}  Qb6 {[%clk 0:02:45]} 11. Be3 {[%clk 0:02:38]}  Bd7 {[%clk 0:02:45]} 12. Na3 {[%clk 0:02:17]}  Rac8 {[%clk 0:02:36]} 13. Rac1 {[%clk 0:02:08]}  a6 {[%clk 0:02:31]} 14. Bd3 {[%clk 0:02:08]}  Nb4 {[%clk 0:02:30]} 15. Bb1 {[%clk 0:02:06]}  Rc6 {[%clk 0:02:03]} 16. Rxc6 {[%clk 0:02:02]}  bxc6 {[%clk 0:01:49]} 17. Nd2 {[%clk 0:02:00]}  Nxd2 {[%clk 0:01:46]} 18. Qxd2 {[%clk 0:02:01]}  a5 {[%clk 0:01:44]} 19. Nc2 {[%clk 0:01:41]}  Nxc2 {[%clk 0:01:37]} 20. Qxc2 {[%clk 0:01:41]}  Bf5 {[%clk 0:01:36]} 21. Qc3 {[%clk 0:01:39]}  Bxb1 {[%clk 0:01:33]} 22. Rxb1 {[%clk 0:01:40]}  Rb8 {[%clk 0:01:31]} 23. b3 {[%clk 0:01:40]}  e6 {[%clk 0:01:23]} 24. Rc1 {[%clk 0:01:39]}  Rc8 {[%clk 0:01:23]} 25. Qc5 {[%clk 0:01:36]}  Qa6 {[%clk 0:01:09]} 26. Bd2 {[%clk 0:01:30]}  a4 {[%clk 0:00:59]} 27. b4 {[%clk 0:01:19]}  Bf8 {[%clk 0:00:53]} 28. Qc3 {[%clk 0:01:02]}  a3 {[%clk 0:00:52]} 29. Rb1 {[%clk 0:00:54]}  Rb8 {[%clk 0:00:50]} 30. g3 {[%clk 0:00:41]}  h5 {[%clk 0:00:47]} 31. h4 {[%clk 0:00:41]}  Qe2 {[%clk 0:00:44]} 32. Re1 {[%clk 0:00:34]}  Qb5 {[%clk 0:00:36]} 33. Rb1 {[%clk 0:00:22]}  Qa6 {[%clk 0:00:34]} 34. Rb3 {[%clk 0:00:21]}  Qe2 {[%clk 0:00:33]} 35. Qd3 {[%clk 0:00:20]}  Qd1+ {[%clk 0:00:18]} 36. Kg2 {[%clk 0:00:19]}  Ra8 {[%clk 0:00:17]} 37. Qc3 {[%clk 0:00:12]}  Ra6 {[%clk 0:00:07]} 38. Be3 {[%clk 0:00:11]}  Qe2 {[%clk 0:00:06]} 39. Rxa3 {[%clk 0:00:10]}  Rxa3 {[%clk 0:00:03]} 40. Qxa3 {[%clk 0:00:10]}  Qb5 {[%clk 0:00:04]} 41. Bd2 {[%clk 0:00:08]}  Qe2 {[%clk 0:00:04]} 42. Qc3 {[%clk 0:00:08]}  Qe4+ {[%clk 0:00:04]} 43. Kg1 {[%clk 0:00:07]}  Qb1+ {[%clk 0:00:04]} 44. Kg2 {[%clk 0:00:08]}  Qxa2 {[%clk 0:00:05]} 45. Bg5 {[%clk 0:00:08]}  Qa6 {[%clk 0:00:04]} 46. Bd2 {[%clk 0:00:07]}  Qb5 {[%clk 0:00:04]} 47. Be1 {[%clk 0:00:06]}  Be7 {[%clk 0:00:05]} 48. Bd2 {[%clk 0:00:07]}  Kf8 {[%clk 0:00:06]} 49. Kg1 {[%clk 0:00:07]}  Ke8 {[%clk 0:00:06]} 50. Kg2 {[%clk 0:00:07]}  Kd7 {[%clk 0:00:07]} 51. Qa3 {[%clk 0:00:07]}  Qb7 {[%clk 0:00:07]} 52. Kg1 {[%clk 0:00:07]}  Bd8 {[%clk 0:00:07]} 53. Bg5 {[%clk 0:00:06]}  Bb6 {[%clk 0:00:06]} 54. Be3 {[%clk 0:00:06]}  Bc7 {[%clk 0:00:06]} 55. Qc3 {[%clk 0:00:06]}  Bd8 {[%clk 0:00:07]} 56. Bd2 {[%clk 0:00:06]}  Be7 {[%clk 0:00:07]} 57. Kg2 {[%clk 0:00:07]}  Qa6 {[%clk 0:00:08]} 58. Kg1 {[%clk 0:00:07]}  Qa2 {[%clk 0:00:07]} 59. Kg2 {[%clk 0:00:06]}  Qa4 {[%clk 0:00:06]} 60. Kg1 {[%clk 0:00:06]}  Qd1+ {[%clk 0:00:06]} 61. Kg2 {[%clk 0:00:06]}  Qe2 {[%clk 0:00:06]} 62. Be3 {[%clk 0:00:06]}  Qc4 {[%clk 0:00:06]} 63. Qxc4 {[%clk 0:00:05]}  dxc4 {[%clk 0:00:07]} 64. Bd2 {[%clk 0:00:05]}  Kc7 {[%clk 0:00:07]} 65. Kf3 {[%clk 0:00:06]}  Kb6 {[%clk 0:00:08]} 66. Kf4 {[%clk 0:00:06]}  Kb5 {[%clk 0:00:08]} 67. g4 {[%clk 0:00:05]}  Bxh4 {[%clk 0:00:07]} 68. f3 {[%clk 0:00:05]}  Be7 {[%clk 0:00:07]} 69. gxh5 {[%clk 0:00:05]}  gxh5 {[%clk 0:00:08]} 0-1


[Site "https://www.chess.com"]

[Event "Titled Tuesday Blitz February 28 Late 2023"]
[White "Hansen, Eric"]
[Black "Berezin, Viktor"]
[WhiteFideId "2606771"]
[BlackFideId "14107872"]
[WhiteElo "2569"]
[BlackElo "2310"]
[Result "1/2-1/2"]
[Round "03"]
[TimeControl "180+2"]
[Date "2023.02.28"]
[WhiteClock "0:00:07"]
[BlackClock "0:00:12"]

1. e4 {[%clk 0:02:59]}  g6 {[%clk 0:03:00]} 2. d4 {[%clk 0:02:58]}  Bg7 {[%clk 0:03:00]} 3. c3 {[%clk 0:02:57]}  d6 {[%clk 0:03:00]} 4. Nf3 {[%clk 0:02:58]}  Nf6 {[%clk 0:03:00]} 5. Bd3 {[%clk 0:02:57]}  Bg4 {[%clk 0:03:00]} 6. O-O {[%clk 0:02:58]}  Nc6 {[%clk 0:02:59]} 7. Nbd2 {[%clk 0:02:59]}  e5 {[%clk 0:02:59]} 8. h3 {[%clk 0:03:00]}  Bxf3 {[%clk 0:02:59]} 9. Nxf3 {[%clk 0:03:01]}  O-O {[%clk 0:02:59]} 10. Re1 {[%clk 0:03:01]}  Re8 {[%clk 0:02:55]} 11. Bd2 {[%clk 0:02:54]}  d5 {[%clk 0:02:55]} 12. exd5 {[%clk 0:02:51]}  Nxd5 {[%clk 0:02:51]} 13. dxe5 {[%clk 0:02:50]}  Nxe5 {[%clk 0:02:49]} 14. Nxe5 {[%clk 0:02:51]}  Rxe5 {[%clk 0:02:49]} 15. Rxe5 {[%clk 0:02:51]}  Bxe5 {[%clk 0:02:50]} 16. Be4 {[%clk 0:02:51]}  c6 {[%clk 0:02:48]} 17. Qf3 {[%clk 0:02:43]}  Qf6 {[%clk 0:02:30]} 18. Re1 {[%clk 0:02:35]}  Nf4 {[%clk 0:02:22]} 19. h4 {[%clk 0:02:27]}  Rd8 {[%clk 0:02:14]} 20. Bc1 {[%clk 0:02:27]}  Ne6 {[%clk 0:01:56]} 21. g3 {[%clk 0:02:24]}  h5 {[%clk 0:01:51]} 22. Qxf6 {[%clk 0:02:09]}  Bxf6 {[%clk 0:01:52]} 23. Bxg6 {[%clk 0:02:10]}  fxg6 {[%clk 0:01:52]} 24. Rxe6 {[%clk 0:02:10]}  Rd1+ {[%clk 0:01:49]} 25. Kg2 {[%clk 0:02:06]}  Kf7 {[%clk 0:01:49]} 26. Rxf6+ {[%clk 0:01:50]}  Kxf6 {[%clk 0:01:50]} 27. Be3 {[%clk 0:01:51]}  Kf5 {[%clk 0:01:45]} 28. Bxa7 {[%clk 0:01:49]}  Ra1 {[%clk 0:01:41]} 29. b4 {[%clk 0:01:47]}  Rxa2 {[%clk 0:01:41]} 30. Bd4 {[%clk 0:01:47]}  Rc2 {[%clk 0:01:39]} 31. Kf3 {[%clk 0:01:47]}  Ra2 {[%clk 0:01:35]} 32. Bg7 {[%clk 0:01:46]}  Rc2 {[%clk 0:01:29]} 33. Bd4 {[%clk 0:01:46]}  b6 {[%clk 0:01:29]} 34. Ke3 {[%clk 0:01:40]}  c5 {[%clk 0:01:08]} 35. bxc5 {[%clk 0:01:40]}  bxc5 {[%clk 0:01:09]} 36. Kd3 {[%clk 0:01:41]}  Ra2 {[%clk 0:01:05]} 37. Bxc5 {[%clk 0:01:41]}  Ra8 {[%clk 0:01:03]} 38. c4 {[%clk 0:01:32]}  Rc8 {[%clk 0:01:02]} 39. Be3 {[%clk 0:01:25]}  Ke6 {[%clk 0:01:02]} 40. Kd4 {[%clk 0:01:25]}  Kd6 {[%clk 0:00:55]} 41. Bf4+ {[%clk 0:01:19]}  Kc6 {[%clk 0:00:50]} 42. Be3 {[%clk 0:01:13]}  Kd6 {[%clk 0:00:50]} 43. Bf4+ {[%clk 0:01:05]}  Kc6 {[%clk 0:00:50]} 44. Ke5 {[%clk 0:01:06]}  Kc5 {[%clk 0:00:47]} 45. Kf6 {[%clk 0:01:03]}  Rc6+ {[%clk 0:00:46]} 46. Kg5 {[%clk 0:00:54]}  Kxc4 {[%clk 0:00:46]} 47. Be5 {[%clk 0:00:55]}  Kd5 {[%clk 0:00:30]} 48. Bf6 {[%clk 0:00:52]}  Ke4 {[%clk 0:00:27]} 49. f4 {[%clk 0:00:30]}  Kf3 {[%clk 0:00:27]} 50. f5 {[%clk 0:00:30]}  gxf5 {[%clk 0:00:23]} 51. Be5 {[%clk 0:00:30]}  Rc5 {[%clk 0:00:13]} 52. Bf4 {[%clk 0:00:27]}  Rc1 {[%clk 0:00:09]} 53. Kxh5 {[%clk 0:00:24]}  Rg1 {[%clk 0:00:07]} 54. Kg5 {[%clk 0:00:19]}  Rxg3+ {[%clk 0:00:07]} 55. Bxg3 {[%clk 0:00:12]}  Kxg3 {[%clk 0:00:08]} 56. h5 {[%clk 0:00:13]}  f4 {[%clk 0:00:08]} 57. h6 {[%clk 0:00:13]}  f3 {[%clk 0:00:09]} 58. h7 {[%clk 0:00:14]}  f2 {[%clk 0:00:10]} 59. h8=Q {[%clk 0:00:15]}  f1=Q {[%clk 0:00:10]} 60. Qh4+ {[%clk 0:00:15]}  Kg2 {[%clk 0:00:10]} 61. Qg4+ {[%clk 0:00:13]}  Kf2 {[%clk 0:00:11]} 62. Qf4+ {[%clk 0:00:10]}  Ke1 {[%clk 0:00:11]} 63. Qxf1+ {[%clk 0:00:07]}  Kxf1 {[%clk 0:00:12]} 1/2-1/2


[Site "https://www.chess.com"]